Workbook

Sheet Ana Menü
M3: APARTMAN ADI
M4: Ahmet Ormanlı Apt.
M6: Ödeme Yılı | O6: 2012

Sheet Yazdırma
D6: METREKARE HESABI OLARAK HESAPLAMA | G6: Allah'ın Selamı Üzerinize Olsun. Yepyeni Bir Çalışma İstifadenize bedelsiz sunulmuştur. Bu program Apartman yöneticilerinin işini kolaylaştırma amacıyla yapılmıştır. İyi Çalışmalar Dilerim. Enes ÇINAR enescinar@hotmail.com.tr
D7: AİT OLDUĞU AY
D8: Ödeme Yılı | E8: 2012
D9: SON ÖDEME TARİHİ | E9: 2012-12-26
D10: Hesaplanacak Daire Sayısı | E10: 12
D11: KASADAN KARŞILAN
D12: KASADA KALAN PARA | E12: 1500
D13: Özel Not Ekleme | E13: Kış Mevsimi olması sebebiyle Bankalardaki yoğunluğuda göz önünde bulundurarak aidatları zamanında ödemenizi rica ederiz..

Sheet veri (hidden)
B1: Metrekare Hesabı
B2: Aylik Gider | C2: Yakıt | D2: Diğer Gider | E2: Sabit Aidat | F2: Genel Toplam | H2: Yakıt metrekare | I2: Gider | J2: Toplam Daire Sayısı
A3: 1 | B3: Ocak | C3: ='Ocak '!G16 -> 980 | D3: ='Ocak '!G13 -> 0 | E3: ='Ocak '!G14 -> 20 | F3: =SUM(C3:D3) -> 980 | H3: =C3/dekontmkare!C20 -> 0.6925795053 | J3: =Yazdırma!E10 -> 12
A4: 2 | B4: Şubat | C4: 500 | D4: 4 | F4: =SUM(C4:D4) -> 504 | H4: =C4/dekontmkare!C20 -> 0.3533568905
A5: 3 | B5: Mart | F5: 0 | H5: =C5/dekontmkare!C20 -> 0
A6: 4 | B6: Nisan | F6: 0 | H6: =C6/dekontmkare!C20 -> 0
A7: 5 | B7: Mayıs | F7: 0 | H7: =C7/dekontmkare!C20 -> 0
A8: 6 | B8: Haziran | F8: 0 | H8: =C8/dekontmkare!C20 -> 0
A9: 7 | B9: Temmuz | F9: 0 | H9: =C9/dekontmkare!C20 -> 0
A10: 8 | B10: Ağustos | F10: 0 | H10: =C10/dekontmkare!C20 -> 0
A11: 9 | B11: Eylül | F11: 0 | H11: =C11/dekontmkare!C20 -> 0
A12: 10 | B12: Ekim | F12: 0 | H12: =C12/dekontmkare!C20 -> 0
A13: 11 | B13: Kasım | F13: 0 | H13: =C13/dekontmkare!C20 -> 0
A14: 12 | B14: Aralık | F14: 0 | H14: =C14/dekontmkare!C20 -> 0
B15: Toplam Gider | C15: =SUM(C3:C14) -> 1480 | F15: =SUM(F3:F14) -> 1484
B18: Kara Düzen Hesap
C19: Ay | D19: Yakıt | E19: Diğer Gider | F19: Sabit Aidat | H19: Yakıt Metrekare Birim | I19: Aidat Kişi | J19: Toplam Gider | K19: Aidat Hariç Gider
B20: 1 | C20: =VLOOKUP(B20,A2:F14,2,TRUE) -> Ocak | D20: =VLOOKUP(B20,A2:F14,3,TRUE) -> 980 | E20: =VLOOKUP(B20,A2:F14,4,TRUE) -> 0 | F20: =VLOOKUP(B20,A2:F14,5,TRUE) -> 20 | H20: =VLOOKUP(B20,A2:J14,8,TRUE) -> 0.6925795053 | I20: =VLOOKUP(B20,A2:I14,8,TRUE) -> 0.6925795053 | J20: =VLOOKUP(B20,A2:F14,5,TRUE) -> 20
H22: AİDAT ARTI ÖDENECEK DİĞER GİDER HESAPLAMA TABLOSU
H23: Sabit Aidat | I23: Diğer Gider | J23: Kasadan Karşılanan | K23: Ödenecek Gider
H24: =F20 -> 20 | I24: =E20-J24 -> 0 | J24: =Yazdırma!E11 -> 0 | K24: =I24/J3 -> 0

Sheet dekontmkare (hidden)
A1: ='Ana Menü'!M4 -> Ahmet Ormanlı Apt. | C1: =Yazdırma!E8 -> 2012 | D1: =veri!C20 -> Ocak | E1: Ödeme Tablosu
A2: Daire No | B2: Adı Soyadı | C2: Daire m | D2: Yakıt | E2: Aidat | F2: Diğer Gider | G2: Yakıt Düşer
A3: 1 | B3: =apartmansakinleri!C3 -> Ercüment | C3: =apartmansakinleri!E3 -> 115 | D3: =C3*veri!H20 -> 79.64664311 | E3: =IF(apartmansakinleri!A2:A18,veri!H24,0) -> 20 | F3: =IF(apartmansakinleri!A2:A18,veri!K24,0) -> 0 | G3: =IF(apartmansakinleri!J3,0,dekontmkare!D3) -> 79.64664311
A4: 2 | B4: =apartmansakinleri!C4 -> iki no | C4: =apartmansakinleri!E4 -> 125 | D4: =C4*veri!H20 -> 86.57243816 | E4: =IF(apartmansakinleri!A4:A19,veri!H24,0) -> 20 | F4: =IF(apartmansakinleri!A3:A19,veri!K24,0) -> 0 | G4: =IF(apartmansakinleri!J4,0,dekontmkare!D4) -> 86.57243816
A5: 3 | B5: =apartmansakinleri!C5 -> 3no | C5: =apartmansakinleri!E5 -> 115 | D5: =C5*veri!H20 -> 79.64664311 | E5: =IF(apartmansakinleri!A5:A20,veri!H24,0) -> 20 | F5: =IF(apartmansakinleri!A4:A20,veri!K24,0) -> 0 | G5: =IF(apartmansakinleri!J5,0,dekontmkare!D5) -> 79.64664311
A6: 4 | B6: =apartmansakinleri!C6 -> 4 no | C6: =apartmansakinleri!E6 -> 125 | D6: =C6*veri!H20 -> 86.57243816 | E6: =IF(apartmansakinleri!A6:A24,veri!H24,0) -> 20 | F6: =IF(apartmansakinleri!A5:A21,veri!K24,0) -> 0 | G6: =IF(apartmansakinleri!J6,0,dekontmkare!D6) -> 86.57243816
A7: 5 | B7: =apartmansakinleri!C7 -> 5 no | C7: =apartmansakinleri!E7 -> 115 | D7: =C7*veri!H20 -> 79.64664311 | E7: =IF(apartmansakinleri!A7:A22,veri!H24,0) -> 20 | F7: =IF(apartmansakinleri!A6:A22,veri!K24,0) -> 0 | G7: =IF(apartmansakinleri!J7,0,dekontmkare!D7) -> 79.64664311
A8: 6 | B8: =apartmansakinleri!C8 -> 6 no | C8: =apartmansakinleri!E8 -> 125 | D8: =C8*veri!H20 -> 86.57243816 | E8: =IF(apartmansakinleri!A8:A23,veri!H24,0) -> 20 | F8: =IF(apartmansakinleri!A7:A23,veri!K24,0) -> 0 | G8: =IF(apartmansakinleri!J8,0,dekontmkare!D8) -> 86.57243816
A9: 7 | B9: =apartmansakinleri!C9 -> 7 no | C9: =apartmansakinleri!E9 -> 115 | D9: =C9*veri!H20 -> 79.64664311 | E9: =IF(apartmansakinleri!A9:A24,veri!H24,0) -> 20 | F9: =IF(apartmansakinleri!A8:A24,veri!K24,0) -> 0 | G9: =IF(apartmansakinleri!J9,0,dekontmkare!D9) -> 79.64664311
A10: 8 | B10: =apartmansakinleri!C10 -> Tayfun | C10: =apartmansakinleri!E10 -> 125 | D10: =C10*veri!H20 -> 86.57243816 | E10: =IF(apartmansakinleri!A10:A25,veri!H24,0) -> 20 | F10: =IF(apartmansakinleri!A9:A25,veri!K24,0) -> 0 | G10: =IF(apartmansakinleri!J10,0,dekontmkare!D10) -> 86.57243816
A11: 9 | B11: =apartmansakinleri!C11 -> 9 no | C11: =apartmansakinleri!E11 -> 115 | D11: =C11*veri!H20 -> 79.64664311 | E11: =IF(apartmansakinleri!A11:A26,veri!H24,0) -> 20 | F11: =IF(apartmansakinleri!A10:A26,veri!K24,0) -> 0 | G11: =IF(apartmansakinleri!J11,0,dekontmkare!D11) -> 79.64664311
A12: 10 | B12: =apartmansakinleri!C12 -> Enes ÇINAR | C12: =apartmansakinleri!E12 -> 0 | D12: =C12*veri!H20 -> 0 | E12: =IF(apartmansakinleri!A12:A27,veri!H24,0) -> 20 | F12: =IF(apartmansakinleri!A11:A27,veri!K24,0) -> 0 | G12: =IF(apartmansakinleri!J12,"Yönetici",dekontmkare!D12) -> Yönetici
A13: 11 | B13: =apartmansakinleri!C13 -> 11 no | C13: =apartmansakinleri!E13 -> 115 | D13: =C13*veri!H20 -> 79.64664311 | E13: =IF(apartmansakinleri!A13:A28,veri!H24,0) -> 20 | F13: =IF(apartmansakinleri!A12:A28,veri!K24,0) -> 0 | G13: =IF(apartmansakinleri!J13,0,dekontmkare!D13) -> 79.64664311
A14: 12 | B14: =apartmansakinleri!C14 -> Yasin DALDAL | C14: =apartmansakinleri!E14 -> 125 | D14: =C14*veri!H20 -> 86.57243816 | E14: =IF(apartmansakinleri!A14:A29,veri!H24,0) -> 20 | F14: =IF(apartmansakinleri!A13:A29,veri!K24,0) -> 0 | G14: =IF(apartmansakinleri!J14,0,dekontmkare!D14) -> 86.57243816
A15: 13 | B15: =apartmansakinleri!C15 -> 0 | C15: =apartmansakinleri!E15 -> 100 | D15: =C15*veri!H20 -> 69.25795053 | E15: =IF(apartmansakinleri!A15:A30,veri!H24,0) -> 20 | F15: =IF(apartmansakinleri!A14:A30,veri!K24,0) -> 0 | G15: =IF(apartmansakinleri!J15,0,dekontmkare!D15) -> 69.25795053
A16: 14 | B16: =apartmansakinleri!C16 -> 0 | C16: =apartmansakinleri!E16 -> 0 | D16: =C16*veri!H20 -> 0 | E16: =IF(apartmansakinleri!A16:A31,veri!H24,0) -> 0 | F16: =IF(apartmansakinleri!A15:A31,veri!K24,0) -> 0 | G16: =IF(apartmansakinleri!J16,0,dekontmkare!D16) -> 0
A17: 15 | B17: =apartmansakinleri!C17 -> 0 | C17: =apartmansakinleri!E17 -> 0 | D17: =C17*veri!H20 -> 0 | E17: =IF(apartmansakinleri!A17:A32,veri!H24,0) -> 0 | F17: =IF(apartmansakinleri!A16:A32,veri!K24,0) -> 0 | G17: =IF(apartmansakinleri!J17,0,dekontmkare!D17) -> 0
A18: 16 | B18: =apartmansakinleri!C18 -> 0 | C18: =apartmansakinleri!E18 -> 0 | D18: =C18*veri!H20 -> 0 | E18: =IF(apartmansakinleri!A18:A33,veri!H24,0) -> 0 | F18: =IF(apartmansakinleri!A17:A33,veri!K24,0) -> 0 | G18: =IF(apartmansakinleri!J18,0,dekontmkare!D18) -> 0
A19: Kasadan Karışılanan | D19: =Yazdırma!E11 -> 0
B20: TOPLAMLAR | C20: =SUM(C3:C18) -> 1415 | D20: =SUM(D3:D18) -> 980 | E20: =SUM(E3:E18) -> 260 | F20: =SUM(F3:F19) -> 0 | G20: =SUM(G3:G18) -> 980
A22: Toplam Gelir | D22: =D20+E20+F20+veri!J24 -> 1240
A23: Toplam Gider | D23: =veri!E20+veri!D20 -> 980
A24: Kasaya Devreden | D24: =D22-D23 -> 260
A25: KASADA KALAN PARA | D25: =Yazdırma!E12+D24 -> 1760

Sheet ÖdemeYaz
A1: ='Ana Menü'!M4 -> Ahmet Ormanlı Apt. | C1: =Yazdırma!E8 -> 2012 | D1: =veri!C20 -> Ocak | E1: =veri!C20 -> Ocak | F1: Ödeme Tablosu
A2: Daire No | B2: Adı Soyadı | C2: Metrekare | D2: Yakıt | E2: Aidat | F2: Diğer Gider | G2: Yakıt | H2: TOPLAM ÖDENECEK | I2: TOPLAM ÖDENECEK
A3: =apartmansakinleri!A3 -> 1 | B3: =apartmansakinleri!C3 -> Ercüment | C3: =apartmansakinleri!E3 -> 115 | D3: =C3*veri!H20 -> 79.64664311 | E3: =IF(apartmansakinleri!A3:A18,veri!H24,0) -> 20 | F3: =IF(apartmansakinleri!A2:A18,veri!K24,0) -> 0 | G3: =ROUNDUP(D3,0) -> 80 | H3: =E3+F3+G3 -> 100 | I3: =ROUNDUP(H3,0) -> 100
A4: =apartmansakinleri!A4 -> 2 | B4: =apartmansakinleri!C4 -> iki no | C4: =apartmansakinleri!E4 -> 125 | D4: =C4*veri!H20 -> 86.57243816 | E4: =IF(apartmansakinleri!A4:A19,veri!H24,0) -> 20 | F4: =IF(apartmansakinleri!A3:A19,veri!K24,0) -> 0 | G4: =ROUNDUP(D4,0) -> 87 | H4: 107 | I4: =ROUNDUP(H4,0) -> 107
A5: =apartmansakinleri!A5 -> 3 | B5: =apartmansakinleri!C5 -> 3no | C5: =apartmansakinleri!E5 -> 115 | D5: =C5*veri!H20 -> 79.64664311 | E5: =IF(apartmansakinleri!A5:A20,veri!H24,0) -> 20 | F5: =IF(apartmansakinleri!A4:A20,veri!K24,0) -> 0 | G5: 80 | H5: 100 | I5: 100
A6: =apartmansakinleri!A6 -> 4 | B6: =apartmansakinleri!C6 -> 4 no | C6: =apartmansakinleri!E6 -> 125 | D6: =C6*veri!H20 -> 86.57243816 | E6: =IF(apartmansakinleri!A6:A24,veri!H24,0) -> 20 | F6: =IF(apartmansakinleri!A5:A21,veri!K24,0) -> 0 | G6: 87 | H6: 107 | I6: 107
A7: =apartmansakinleri!A7 -> 5 | B7: =apartmansakinleri!C7 -> 5 no | C7: =apartmansakinleri!E7 -> 115 | D7: =C7*veri!H20 -> 79.64664311 | E7: =IF(apartmansakinleri!A7:A22,veri!H24,0) -> 20 | F7: =IF(apartmansakinleri!A6:A22,veri!K24,0) -> 0 | G7: 80 | H7: 100 | I7: 100
A8: =apartmansakinleri!A8 -> 6 | B8: =apartmansakinleri!C8 -> 6 no | C8: =apartmansakinleri!E8 -> 125 | D8: =C8*veri!H20 -> 86.57243816 | E8: =IF(apartmansakinleri!A8:A23,veri!H24,0) -> 20 | F8: =IF(apartmansakinleri!A7:A23,veri!K24,0) -> 0 | G8: 87 | H8: 107 | I8: 107
A9: =apartmansakinleri!A9 -> 7 | B9: =apartmansakinleri!C9 -> 7 no | C9: =apartmansakinleri!E9 -> 115 | D9: =C9*veri!H20 -> 79.64664311 | E9: =IF(apartmansakinleri!A9:A24,veri!H24,0) -> 20 | F9: =IF(apartmansakinleri!A8:A24,veri!K24,0) -> 0 | G9: 80 | H9: 100 | I9: 100
A10: =apartmansakinleri!A10 -> 8 | B10: =apartmansakinleri!C10 -> Tayfun | C10: =apartmansakinleri!E10 -> 125 | D10: =C10*veri!H20 -> 86.57243816 | E10: =IF(apartmansakinleri!A10:A25,veri!H24,0) -> 20 | F10: =IF(apartmansakinleri!A9:A25,veri!K24,0) -> 0 | G10: 87 | H10: 107 | I10: 107
A11: =apartmansakinleri!A11 -> 9 | B11: =apartmansakinleri!C11 -> 9 no | C11: =apartmansakinleri!E11 -> 115 | D11: =C11*veri!H20 -> 79.64664311 | E11: =IF(apartmansakinleri!A11:A26,veri!H24,0) -> 20 | F11: =IF(apartmansakinleri!A10:A26,veri!K24,0) -> 0 | G11: 80 | H11: 100 | I11: 100
A12: =apartmansakinleri!A12 -> 10 | B12: =apartmansakinleri!C12 -> Enes ÇINAR | C12: =apartmansakinleri!E12 -> 0 | D12: =C12*veri!H20 -> 0 | E12: =IF(apartmansakinleri!A12:A27,veri!H24,0) -> 20 | F12: =IF(apartmansakinleri!A11:A27,veri!K24,0) -> 0 | G12: =ROUNDUP(D12,0) -> 0 | H12: 20 | I12: 20
A13: =apartmansakinleri!A13 -> 11 | B13: =apartmansakinleri!C13 -> 11 no | C13: =apartmansakinleri!E13 -> 115 | D13: =C13*veri!H20 -> 79.64664311 | E13: =IF(apartmansakinleri!A13:A28,veri!H24,0) -> 20 | F13: =IF(apartmansakinleri!A12:A28,veri!K24,0) -> 0 | G13: 80 | H13: 100 | I13: 100
A14: =apartmansakinleri!A14 -> 12 | B14: =apartmansakinleri!C14 -> Yasin DALDAL | C14: =apartmansakinleri!E14 -> 125 | D14: =C14*veri!H20 -> 86.57243816 | E14: =IF(apartmansakinleri!A14:A29,veri!H24,0) -> 20 | F14: =IF(apartmansakinleri!A13:A29,veri!K24,0) -> 0 | G14: 87 | H14: 107 | I14: 107
A15: =apartmansakinleri!A15 -> 13 | B15: =apartmansakinleri!C15 -> 0 | C15: =apartmansakinleri!E15 -> 100 | D15: =C15*veri!H20 -> 69.25795053 | E15: =IF(apartmansakinleri!A15:A30,veri!H24,0) -> 20 | F15: =IF(apartmansakinleri!A14:A30,veri!K24,0) -> 0 | G15: 70 | H15: 90 | I15: 90
A16: =apartmansakinleri!A16 -> 0 | B16: =apartmansakinleri!C16 -> 0 | C16: =apartmansakinleri!E16 -> 0 | D16: =C16*veri!H20 -> 0 | E16: =IF(apartmansakinleri!A16:A31,veri!H24,0) -> 0 | F16: =IF(apartmansakinleri!A15:A31,veri!K24,0) -> 0 | G16: 0 | H16: 0 | I16: 0
A17: =apartmansakinleri!A17 -> 0 | B17: =apartmansakinleri!C17 -> 0 | C17: =apartmansakinleri!E17 -> 0 | D17: =C17*veri!H20 -> 0 | E17: =IF(apartmansakinleri!A17:A32,veri!H24,0) -> 0 | F17: =IF(apartmansakinleri!A16:A32,veri!K24,0) -> 0 | G17: 0 | H17: 0 | I17: 0
A18: =apartmansakinleri!A18 -> 0 | B18: =apartmansakinleri!C18 -> 0 | C18: =apartmansakinleri!E18 -> 0 | D18: =C18*veri!H20 -> 0 | E18: =IF(apartmansakinleri!A18:A33,veri!H24,0) -> 0 | F18: =IF(apartmansakinleri!A17:A33,veri!K24,0) -> 0 | G18: 0 | H18: 0 | I18: 0
A19: Kasadan Karışılanan | D19: =Yazdırma!E11 -> 0 | I19: 0
B20: TOPLAMLAR | C20: =SUM(C3:C18) -> 1415 | D20: =SUM(D3:D18) -> 980 | E20: =SUM(E3:E18) -> 260 | F20: =SUM(F3:F19) -> 0 | G20: =SUM(G3:G18) -> 985 | I20: 0
A22: Toplam Gelir | D22: =D20+E20+F20+veri!J24 -> 1240
A23: Toplam Gider | D23: =veri!E20+veri!D20 -> 980
A24: Kasaya Devreden | D24: =D22-D23 -> 260
A25: KASADA KALAN PARA | D25: =Yazdırma!E12+D24 -> 1760
A26: =Yazdırma!E13 -> Kış Mevsimi olması sebebiyle Bankalardaki yoğunluğuda göz önünde bulundurarak aidatları zamanında ödemenizi rica ederiz..

Sheet apartmansakinleri
A1: ='Ana Menü'!M4 -> Ahmet Ormanlı Apt. | F1: sakinleri bilgileri
A2: Daire No | B2: Kat | C2: Adı Soyadı | D2: Daire m | E2: Hesaba Alınacak Mk | F2: Daire Sahibi Kiracı | G2: Telefon Numarası Ev | H2: Cep Tel | I2: Evdeki Kişi Sayısı | J2: Yöneticimi
A3: 1 | B3: Zemin | C3: Ercüment | D3: 115 | E3: =IF(J3,0,D3) -> 115 | J3: 0
A4: 2 | B4: Zemin | C4: iki no | D4: 125 | E4: =IF(J4,0,D4) -> 125 | J4: 0
A5: 3 | C5: 3no | D5: 115 | E5: 115 | J5: 0
A6: 4 | C6: 4 no | D6: 125 | E6: 125 | J6: 0
A7: 5 | C7: 5 no | D7: 115 | E7: 115 | J7: 0
A8: 6 | C8: 6 no | D8: 125 | E8: 125 | J8: 0
A9: 7 | C9: 7 no | D9: 115 | E9: 115 | J9: 0
A10: 8 | C10: Tayfun | D10: 125 | E10: 125 | J10: 0
A11: 9 | C11: 9 no | D11: 115 | E11: 115 | J11: 0
A12: 10 | B12: 3 | C12: Enes ÇINAR | D12: 115 | E12: 0 | F12: Daire Sahibi | G12: 5465443600 | H12: 5465443600 | I12: 4 | J12: 1
A13: 11 | C13: 11 no | D13: 115 | E13: 115 | J13: 0
A14: 12 | B14: 4 | C14: Yasin DALDAL | D14: 125 | E14: =IF(J14,0,D14) -> 125 | F14: Kiracı
A15: 13 | D15: 100 | E15: 100 | J15: 0
E16: 0 | J16: 0
E17: 0 | J17: 0
E18: 0 | J18: 0
A20: Apartman Toplam Metrekare | D20: =SUM(D3:D18) -> 1530 | E20: =SUM(E3:E18) -> 1415 | F20: =SUM(D3:D18) -> 1530

Sheet Ocak
A1: ='Ana Menü'!M4 -> Ahmet Ormanlı Apt. | D1: ='Ana Menü'!O6 -> 2012 | E1: Ocak Ayı | F1: Gider Hesabı
B2: Tarihi | C2: Giderin Adı | D2: Ödenen Firma | E2: İşin Yapıldığı Tarih | F2: Son Ödeme Tarihi | G2: Ödenecek Tutar
A3: 1 | B3: 2012-12-10 | C3: Apartman Boşluğu Elektrik | D3: Tedaş | E3: 2012-12-21 | F3: 2012-12-18
A4: 2 | B4: 2012-12-10 | C4: Temizlik | D4: Güngör Temizlik | E4: 1 Aylık | F4: 2012-12-18
A5: 3 | B5: 2012-12-10 | C5: Asansör | D5: Turşah Asansör | E5: 1 Aylık | F5: 2012-12-18
A6: 4
A7: 5
A8: 6
A9: 7
A10: 8
A11: 9
A12: 10
A13: GİDER ARA TOPLAMI | G13: =SUM(G3:G12) -> 0
A14: SABİT AİDAT | G14: 20
A15: Aidat ve diğer gider toplamı | G15: =SUM(G13+G14) -> 20
A16: Not: | F16: Yakıt | G16: 980
F17: Genel Toplam | G17: =SUM(G15:G16) -> 1000

Sheet Şubat
A1: ='Ana Menü'!M4 -> Ahmet Ormanlı Apt. | D1: ='Ana Menü'!O6 -> 2012 | E1: Şubat Ayı Gider Hesabı
B2: Tarihi | C2: Giderin Adı | D2: Ödenen Firma | E2: İşin Yapıldığı Tarih | F2: Son Ödeme Tarihi | G2: Ödenecek Tutar
A3: 1 | B3: 2012-12-10 | C3: Apartman Boşluğu Elektrik | D3: Tedaş | E3: 2012-12-21 | F3: 2012-12-18 | G3: 80
A4: 2 | B4: 2012-12-10 | C4: Temizlik | D4: Güngör Temizlik | E4: 1 Aylık | F4: 2012-12-18 | G4: 250
A5: 3 | B5: 2012-12-10 | C5: Asansör | D5: Turşah Asansör | E5: 1 Aylık | F5: 2012-12-18 | G5: 50
A6: 4 | G6: 130
A7: 5
A8: 6
A9: 7
A10: 8
A11: 9
A12: 10
A13: GİDER ARA TOPLAMI | G13: =SUM(G3:G12) -> 510
A14: SABİT AİDAT | G14: 20
A15: Aidat ve diğer gider toplamı | G15: =SUM(G13+G14) -> 530
A16: Not: | F16: Yakıt | G16: 1000
F17: Genel Toplam | G17: =SUM(G15:G16) -> 1530

Sheet Mart
A1: ='Ana Menü'!M4 -> Ahmet Ormanlı Apt. | D1: ='Ana Menü'!O6 -> 2012 | E1: Mart Ayı Gider Hesabı
B2: Tarihi | C2: Giderin Adı | D2: Ödenen Firma | E2: İşin Yapıldığı Tarih | F2: Son Ödeme Tarihi | G2: Ödenecek Tutar
A3: 1 | B3: 2012-12-10 | C3: Apartman Boşluğu Elektrik | D3: Tedaş | E3: 2012-12-21 | F3: 2012-12-18 | G3: 80
A4: 2 | B4: 2012-12-10 | C4: Temizlik | D4: Güngör Temizlik | E4: 1 Aylık | F4: 2012-12-18 | G4: 250
A5: 3 | B5: 2012-12-10 | C5: Asansör | D5: Turşah Asansör | E5: 1 Aylık | F5: 2012-12-18 | G5: 50
A6: 4 | G6: 130
A7: 5
A8: 6
A9: 7
A10: 8
A11: 9
A12: 10
A13: GİDER ARA TOPLAMI | G13: =SUM(G3:G12) -> 510
A14: SABİT AİDAT | G14: 20
A15: Aidat ve diğer gider toplamı | G15: =SUM(G13+G14) -> 530
A16: Not: | F16: Yakıt | G16: 1000
F17: Genel Toplam | G17: =SUM(G15:G16) -> 1530

Sheet Nisan
A1: ='Ana Menü'!M4 -> Ahmet Ormanlı Apt. | D1: ='Ana Menü'!O6 -> 2012 | E1: Nisan Ayı Gider Hesabı
B2: Tarihi | C2: Giderin Adı | D2: Ödenen Firma | E2: İşin Yapıldığı Tarih | F2: Son Ödeme Tarihi | G2: Ödenecek Tutar
A3: 1 | B3: 2012-12-10 | C3: Apartman Boşluğu Elektrik | D3: Tedaş | E3: 2012-12-21 | F3: 2012-12-18 | G3: 80
A4: 2 | B4: 2012-12-10 | C4: Temizlik | D4: Güngör Temizlik | E4: 1 Aylık | F4: 2012-12-18 | G4: 250
A5: 3 | B5: 2012-12-10 | C5: Asansör | D5: Turşah Asansör | E5: 1 Aylık | F5: 2012-12-18 | G5: 50
A6: 4 | G6: 130
A7: 5
A8: 6
A9: 7
A10: 8
A11: 9
A12: 10
A13: GİDER ARA TOPLAMI | G13: =SUM(G3:G12) -> 510
A14: SABİT AİDAT | G14: 20
A15: Aidat ve diğer gider toplamı | G15: =SUM(G13+G14) -> 530
A16: Not: | F16: Yakıt | G16: 1000
F17: Genel Toplam | G17: =SUM(G15:G16) -> 1530

Sheet Mayıs
A1: ='Ana Menü'!M4 -> Ahmet Ormanlı Apt. | D1: ='Ana Menü'!O6 -> 2012 | E1: Mayıs Ayı Gider Hesabı
B2: Tarihi | C2: Giderin Adı | D2: Ödenen Firma | E2: İşin Yapıldığı Tarih | F2: Son Ödeme Tarihi | G2: Ödenecek Tutar
A3: 1 | B3: 2012-12-10 | C3: Apartman Boşluğu Elektrik | D3: Tedaş | E3: 2012-12-21 | F3: 2012-12-18 | G3: 80
A4: 2 | B4: 2012-12-10 | C4: Temizlik | D4: Güngör Temizlik | E4: 1 Aylık | F4: 2012-12-18 | G4: 250
A5: 3 | B5: 2012-12-10 | C5: Asansör | D5: Turşah Asansör | E5: 1 Aylık | F5: 2012-12-18 | G5: 50
A6: 4 | G6: 130
A7: 5
A8: 6
A9: 7
A10: 8
A11: 9
A12: 10
A13: GİDER ARA TOPLAMI | G13: =SUM(G3:G12) -> 510
A14: SABİT AİDAT | G14: 20
A15: Aidat ve diğer gider toplamı | G15: =SUM(G13+G14) -> 530
A16: Not: | F16: Yakıt | G16: 1000
F17: Genel Toplam | G17: =SUM(G15:G16) -> 1530

Sheet Haziran
A1: ='Ana Menü'!M4 -> Ahmet Ormanlı Apt. | D1: ='Ana Menü'!O6 -> 2012 | E1: Haziran Ayı Gider Hesabı
B2: Tarihi | C2: Giderin Adı | D2: Ödenen Firma | E2: İşin Yapıldığı Tarih | F2: Son Ödeme Tarihi | G2: Ödenecek Tutar
A3: 1 | B3: 2012-12-10 | C3: Apartman Boşluğu Elektrik | D3: Tedaş | E3: 2012-12-21 | F3: 2012-12-18 | G3: 80
A4: 2 | B4: 2012-12-10 | C4: Temizlik | D4: Güngör Temizlik | E4: 1 Aylık | F4: 2012-12-18 | G4: 250
A5: 3 | B5: 2012-12-10 | C5: Asansör | D5: Turşah Asansör | E5: 1 Aylık | F5: 2012-12-18 | G5: 50
A6: 4 | G6: 130
A7: 5
A8: 6
A9: 7
A10: 8
A11: 9
A12: 10
A13: GİDER ARA TOPLAMI | G13: =SUM(G3:G12) -> 510
A14: SABİT AİDAT | G14: 20
A15: Aidat ve diğer gider toplamı | G15: =SUM(G13+G14) -> 530
A16: Not: | F16: Yakıt | G16: 1000
F17: Genel Toplam | G17: =SUM(G15:G16) -> 1530

Sheet Temmuz
A1: ='Ana Menü'!M4 -> Ahmet Ormanlı Apt. | D1: ='Ana Menü'!O6 -> 2012 | E1: Temmuz Ayı Gider Hesabı
B2: Tarihi | C2: Giderin Adı | D2: Ödenen Firma | E2: İşin Yapıldığı Tarih | F2: Son Ödeme Tarihi | G2: Ödenecek Tutar
A3: 1 | B3: 2012-12-10 | C3: Apartman Boşluğu Elektrik | D3: Tedaş | E3: 2012-12-21 | F3: 2012-12-18 | G3: 80
A4: 2 | B4: 2012-12-10 | C4: Temizlik | D4: Güngör Temizlik | E4: 1 Aylık | F4: 2012-12-18 | G4: 250
A5: 3 | B5: 2012-12-10 | C5: Asansör | D5: Turşah Asansör | E5: 1 Aylık | F5: 2012-12-18 | G5: 50
A6: 4 | G6: 130
A7: 5
A8: 6
A9: 7
A10: 8
A11: 9
A12: 10
A13: GİDER ARA TOPLAMI | G13: =SUM(G3:G12) -> 510
A14: SABİT AİDAT | G14: 20
A15: Aidat ve diğer gider toplamı | G15: =SUM(G13+G14) -> 530
A16: Not: | F16: Yakıt | G16: 1000
F17: Genel Toplam | G17: =SUM(G15:G16) -> 1530

Sheet Ağustos
A1: ='Ana Menü'!M4 -> Ahmet Ormanlı Apt. | D1: ='Ana Menü'!O6 -> 2012 | E1: Ağustos Ayı Gider Hesabı
B2: Tarihi | C2: Giderin Adı | D2: Ödenen Firma | E2: İşin Yapıldığı Tarih | F2: Son Ödeme Tarihi | G2: Ödenecek Tutar
A3: 1 | B3: 2012-12-10 | C3: Apartman Boşluğu Elektrik | D3: Tedaş | E3: 2012-12-21 | F3: 2012-12-18 | G3: 80
A4: 2 | B4: 2012-12-10 | C4: Temizlik | D4: Güngör Temizlik | E4: 1 Aylık | F4: 2012-12-18 | G4: 250
A5: 3 | B5: 2012-12-10 | C5: Asansör | D5: Turşah Asansör | E5: 1 Aylık | F5: 2012-12-18 | G5: 50
A6: 4 | G6: 130
A7: 5
A8: 6
A9: 7
A10: 8
A11: 9
A12: 10
A13: GİDER ARA TOPLAMI | G13: =SUM(G3:G12) -> 510
A14: SABİT AİDAT | G14: 20
A15: Aidat ve diğer gider toplamı | G15: =SUM(G13+G14) -> 530
A16: Not: | F16: Yakıt | G16: 1000
F17: Genel Toplam | G17: =SUM(G15:G16) -> 1530

Sheet Eylül
A1: ='Ana Menü'!M4 -> Ahmet Ormanlı Apt. | D1: ='Ana Menü'!O6 -> 2012 | E1: Eylül Ayı Gider Hesabı
B2: Tarihi | C2: Giderin Adı | D2: Ödenen Firma | E2: İşin Yapıldığı Tarih | F2: Son Ödeme Tarihi | G2: Ödenecek Tutar
A3: 1 | B3: 2012-12-10 | C3: Apartman Boşluğu Elektrik | D3: Tedaş | E3: 2012-12-21 | F3: 2012-12-18 | G3: 80
A4: 2 | B4: 2012-12-10 | C4: Temizlik | D4: Güngör Temizlik | E4: 1 Aylık | F4: 2012-12-18 | G4: 250
A5: 3 | B5: 2012-12-10 | C5: Asansör | D5: Turşah Asansör | E5: 1 Aylık | F5: 2012-12-18 | G5: 50
A6: 4 | G6: 130
A7: 5
A8: 6
A9: 7
A10: 8
A11: 9
A12: 10
A13: GİDER ARA TOPLAMI | G13: =SUM(G3:G12) -> 510
A14: SABİT AİDAT | G14: 20
A15: Aidat ve diğer gider toplamı | G15: =SUM(G13+G14) -> 530
A16: Not: | F16: Yakıt | G16: 1000
F17: Genel Toplam | G17: =SUM(G15:G16) -> 1530

Sheet Ekim
A1: ='Ana Menü'!M4 -> Ahmet Ormanlı Apt. | D1: ='Ana Menü'!O6 -> 2012 | E1: Ekim Ayı Gider Hesabı
B2: Tarihi | C2: Giderin Adı | D2: Ödenen Firma | E2: İşin Yapıldığı Tarih | F2: Son Ödeme Tarihi | G2: Ödenecek Tutar
A3: 1 | B3: 2012-12-10 | C3: Apartman Boşluğu Elektrik | D3: Tedaş | E3: 2012-12-21 | F3: 2012-12-18 | G3: 80
A4: 2 | B4: 2012-12-10 | C4: Temizlik | D4: Güngör Temizlik | E4: 1 Aylık | F4: 2012-12-18 | G4: 250
A5: 3 | B5: 2012-12-10 | C5: Asansör | D5: Turşah Asansör | E5: 1 Aylık | F5: 2012-12-18 | G5: 50
A6: 4 | G6: 130
A7: 5
A8: 6
A9: 7
A10: 8
A11: 9
A12: 10
A13: GİDER ARA TOPLAMI | G13: =SUM(G3:G12) -> 510
A14: SABİT AİDAT | G14: 20
A15: Aidat ve diğer gider toplamı | G15: =SUM(G13+G14) -> 530
A16: Not: | F16: Yakıt | G16: 1000
F17: Genel Toplam | G17: =SUM(G15:G16) -> 1530

Sheet Kasım
A1: ='Ana Menü'!M4 -> Ahmet Ormanlı Apt. | D1: ='Ana Menü'!O6 -> 2012 | E1: Kasım Ayı Gider Hesabı
B2: Tarihi | C2: Giderin Adı | D2: Ödenen Firma | E2: İşin Yapıldığı Tarih | F2: Son Ödeme Tarihi | G2: Ödenecek Tutar
A3: 1 | B3: 2012-12-10 | C3: Apartman Boşluğu Elektrik | D3: Tedaş | E3: 2012-12-21 | F3: 2012-12-18 | G3: 80
A4: 2 | B4: 2012-12-10 | C4: Temizlik | D4: Güngör Temizlik | E4: 1 Aylık | F4: 2012-12-18 | G4: 250
A5: 3 | B5: 2012-12-10 | C5: Asansör | D5: Turşah Asansör | E5: 1 Aylık | F5: 2012-12-18 | G5: 50
A6: 4 | G6: 130
A7: 5
A8: 6
A9: 7
A10: 8
A11: 9
A12: 10
A13: GİDER ARA TOPLAMI | G13: =SUM(G3:G12) -> 510
A14: SABİT AİDAT | G14: 20
A15: Aidat ve diğer gider toplamı | G15: =SUM(G13+G14) -> 530
A16: Not: | F16: Yakıt | G16: 1000
F17: Genel Toplam | G17: =SUM(G15:G16) -> 1530

Sheet Aralık
A1: ='Ana Menü'!M4 -> Ahmet Ormanlı Apt. | D1: ='Ana Menü'!O6 -> 2012 | E1: Aralık Ayı Gider Hesabı
B2: Tarihi | C2: Giderin Adı | D2: Ödenen Firma | E2: İşin Yapıldığı Tarih | F2: Son Ödeme Tarihi | G2: Ödenecek Tutar
A3: 1 | B3: 2012-12-10 | C3: Apartman Boşluğu Elektrik | D3: Tedaş | E3: 2012-12-21 | F3: 2012-12-18 | G3: 80
A4: 2 | B4: 2012-12-10 | C4: Temizlik | D4: Güngör Temizlik | E4: 1 Aylık | F4: 2012-12-18 | G4: 250
A5: 3 | B5: 2012-12-10 | C5: Asansör | D5: Turşah Asansör | E5: 1 Aylık | F5: 2012-12-18 | G5: 50
A6: 4 | G6: 130
A7: 5
A8: 6
A9: 7
A10: 8
A11: 9
A12: 10
A13: GİDER ARA TOPLAMI | G13: =SUM(G3:G12) -> 510
A14: SABİT AİDAT | G14: 20
A15: Aidat ve diğer gider toplamı | G15: =SUM(G13+G14) -> 530
A16: Not: | F16: Yakıt | G16: 1000
F17: Genel Toplam | G17: =SUM(G15:G16) -> 1530

Sheet yardım
A1: Enes ÇINAR Apartman Yönetici Programı metrekare
A2: Programın yapılış amacı şudur. Apartman giderlerini hesapalarken adil dağıtım yapabilmek ve zamandan kazanmak için yapılmıştır. Yapılırken ufak tefek hatalar mutlaka olacaktır. Tabiki buda sizlerin denemesi ve hataları bildirmenizle gerçekleşecektir.
A3: PROGRAMIN KULLANIM DETAYLARI
A4: İlk olarak ana menüden apartman adınızı ve seneyi yazınız.
A5: 1- | B5: Apartman sakinleri bilgisini giriniz
A6: a- | B6: Aidat hesaplamasını daire noya göre yapacağından aidat ödeyecek kaç daire varsa o kadar sıra yazınız
A7: b- | B7: Daire metrekaresine göre otomatik dağılım yapmasını istiyorsanız metrekarelerini düzgün olarak yazınız. Yöneticiden aidat alınmasın diyorsanız eğer , yöneticinin olduğu kısımda daire nosunu boş bırakınız
A8: c- | B8: Şayet metrekareler eşit ve siz yöneticiden sadece yakıt giderinin %30 'unu almak istiyorsunuz o zaman tüm daire sakinlerinin metrekare alanına 100 Yöneticiye ise 30 veya % kaçsa onu yazıyıyoruz. Ve Yönetici kısmında 0 yapıyoruz yani herkes sıfır oluyor. yoksa yöneticiyi işaretlerseniz ondan hiç yakıt almaz. Yöneticiden hiç yakıt almak istemiyorsanız yönetici kısmına 1 ayzamalısınız.
A9: 2- | B9: Her ayın Gider tablosu ana menüde bulunmaktadır. Her ayı kendi tablosuna işliyoruz.
A10: a- | B10: Eğer Sabit aidatınız varsa onu altta bulunan kısma yazıyoruz. Şayet aidatı aylık gidere göre hesaplıyorsanız bu noktada sabir aidat kısmı sıfır yaptığınızda gidere göre aidat çıkaracaktır ve diğer ödeme kısmında yazacaktır.
A11: b- | B11: Yakıt geldiği dönemlerde yakıtı da ayrıca aşağıda belirtmeniz lazım yoksa hesaplama yapamaz . Yakıt kısmına gelen toplam ücreti yazın gerisini programa bırakın :)
A12: 3 | B12: Ana Menüde bulunan "Hesaplama Bilgilerini Gir " linkine tıklayarak Ödeme Yılı,Son Ödeme Tarihi, Hesaplanacak daire sayısı,Kasadan karşılanan ve Kasada kalan parayı yazınız
A13: Kasadan karşılanan: yani Sabit aidatlı apartmanlar için hesapta kalan paradan yaptığınız ödemeleri yazdığınızda sadece harcamalarınızı daire sakinlerine sunmuşolacaksınız o ay için ayrıca onlara ücret yansıtmayacak.
A14: Kasada kalan parayı: Sadece bilgi amaçlıdır hesap tutmaz.
A15: Yazdırma
A16: 1- | B16: Ödenecek tutarları yazdır dediğinizde daire sahiplerine göre ödenecek tutarları yazdırır.
A17: 2- | B17: Giderleri yazdırmak içinde her ayın kendi sayfasında YAZDIR butonu bulunmaktadır.
A19: Programın bu versiyonu Allah Rızası için yapılıp istifadenize sunulmuştur. İlk Hesaplamalarda bir dha önceden yaptığınız kara düzene göre hesplama yapıp programın doğru çalışıp çalışmadığını kontrol etmek menfaatiniz icabıdır.
A24: PROGRAMDAN KAYNAKLANACAK AKSAKLIKLARDAN DOLAYI PROGRAMI YAPAAN KESİNLİKLE SORUMLU TUTULAMAZ. HİÇ BİR GARANTİSİ YOKTUR. SONUÇTA KUL YAPISIDIR.
A27: SELAM VE DUA İLE . Enes ÇINAR
